[Event "Early-Titled-Tuesday-Blitz-August-29-2023"]
[Site "Chess.com"]
[Date "2023.08.29"]
[Round "4"]
[White "ybothg"]
[Black "stepanosinovsky"]
[Result "1-0"]
[WhiteElo "2488"]
[BlackElo "2296"]
[TimeControl "180+1"]
[EndTime "8:38:15 PDT"]
[Termination "ybothg won on time"]

1. d4 {[%clk 0:03:00.9]} 1... Nf6 {[%clk 0:02:47]} 2. Bg5 {[%clk 0:02:59.7]}
2... c5 {[%clk 0:02:45.4]} 3. d5 {[%clk 0:02:59.9]} 3... Ne4 {[%clk 0:02:44.4]}
4. h4 {[%clk 0:02:59.9]} 4... d6 {[%clk 0:02:20.1]} 5. Nd2 {[%clk 0:02:57.9]}
5... Nxg5 {[%clk 0:02:19.2]} 6. hxg5 {[%clk 0:02:55.7]} 6... g6 {[%clk
0:02:16.7]} 7. c3 {[%clk 0:02:53]} 7... h6 {[%clk 0:02:07.8]} 8. e4 {[%clk
0:02:51.3]} 8... Nd7 {[%clk 0:02:04.6]} 9. Ngf3 {[%clk 0:02:49.7]} 9... a6
{[%clk 0:02:03.6]} 10. a4 {[%clk 0:02:47.7]} 10... Bg7 {[%clk 0:01:53.6]} 11.
gxh6 {[%clk 0:02:47.3]} 11... Rxh6 {[%clk 0:01:54]} 12. Rxh6 {[%clk 0:02:47.3]}
12... Bxh6 {[%clk 0:01:54.9]} 13. a5 {[%clk 0:02:43.1]} 13... Nf6 {[%clk
0:01:53]} 14. Bd3 {[%clk 0:02:41.8]} 14... Kf8 {[%clk 0:01:51.8]} 15. Ke2 {[%clk
0:02:41.9]} 15... Nh5 {[%clk 0:01:49.2]} 16. g3 {[%clk 0:02:41.7]} 16... Bg4
{[%clk 0:01:49.7]} 17. Qh1 {[%clk 0:02:36]} 17... e6 {[%clk 0:01:38.3]} 18. dxe6
{[%clk 0:02:29.9]} 18... fxe6 {[%clk 0:01:39.2]} 19. Nc4 {[%clk 0:02:26.1]}
19... Qf6 {[%clk 0:01:29.9]} 20. Nb6 {[%clk 0:02:13]} 20... Rd8 {[%clk
0:01:26.5]} 21. e5 {[%clk 0:02:05.8]} 21... dxe5 {[%clk 0:01:04.1]} 22. Be4
{[%clk 0:02:05.7]} 22... Kg7 {[%clk 0:00:43.5]} 23. Rd1 {[%clk 0:01:59.4]} 23...
Nf4+ {[%clk 0:00:19.3]} 24. gxf4 {[%clk 0:01:59.4]} 24... Qxf4 {[%clk
0:00:20.2]} 25. Bxb7 {[%clk 0:01:50.9]} 25... e4 {[%clk 0:00:19.7]} 26. Rxd8
{[%clk 0:01:39.4]} 26... exf3+ {[%clk 0:00:19.7]} 27. Bxf3 {[%clk 0:01:32.2]}
27... Qe4+ {[%clk 0:00:18.7]} 28. Kf1 {[%clk 0:01:29.2]} 28... Bxf3 {[%clk
0:00:17.5]} 29. Rd7+ {[%clk 0:01:29.8]} 29... Kg8 {[%clk 0:00:10.4]} 30. Rd8+
{[%clk 0:01:29.5]} 30... Kf7 {[%clk 0:00:07.4]} 31. Rd7+ {[%clk 0:01:24.4]}
31... Ke8 {[%clk 0:00:07.5]} 32. Qxh6 {[%clk 0:01:07.9]} 32... Qe1+ {[%clk
0:00:07.2]} 33. Kxe1 {[%clk 0:01:08]} 1-0

[Event "Early-Titled-Tuesday-Blitz-August-29-2023"]
[Site "Chess.com"]
[Date "2023.08.29"]
[Round "4"]
[White "Juicy_Fork"]
[Black "Aemulus20"]
[Result "0-1"]
[WhiteElo "2403"]
[BlackElo "2654"]
[TimeControl "180+1"]
[EndTime "8:38:16 PDT"]
[Termination "Aemulus20 won by resignation"]

1. e4 {[%clk 0:03:00.9]} 1... c6 {[%clk 0:02:59.9]} 2. d4 {[%clk 0:02:56.9]}
2... d5 {[%clk 0:03:00.4]} 3. f3 {[%clk 0:02:57.4]} 3... Qb6 {[%clk 0:02:59.6]}
4. Nc3 {[%clk 0:02:57]} 4... dxe4 {[%clk 0:02:59.8]} 5. fxe4 {[%clk 0:02:56.9]}
5... e5 {[%clk 0:03:00.4]} 6. Nf3 {[%clk 0:02:53.8]} 6... exd4 {[%clk
0:03:00.3]} 7. Qxd4 {[%clk 0:02:49.9]} 7... Nf6 {[%clk 0:02:57.6]} 8. Be3 {[%clk
0:02:39]} 8... Be6 {[%clk 0:02:34]} 9. a3 {[%clk 0:02:19.2]} 9... Nbd7 {[%clk
0:02:29.5]} 10. Qxb6 {[%clk 0:02:04]} 10... axb6 {[%clk 0:02:29.3]} 11. h3
{[%clk 0:02:01.3]} 11... b5 {[%clk 0:02:16.9]} 12. O-O-O {[%clk 0:01:29.7]}
12... b4 {[%clk 0:02:11.9]} 13. axb4 {[%clk 0:01:25.3]} 13... Bxb4 {[%clk
0:02:11.7]} 14. Bd4 {[%clk 0:01:16.2]} 14... Ra1+ {[%clk 0:02:10.7]} 15. Kd2
{[%clk 0:01:16.1]} 15... Nxe4+ {[%clk 0:02:10.7]} 16. Ke3 {[%clk 0:01:12.1]}
16... Rxd1 {[%clk 0:02:00.2]} 17. Nxd1 {[%clk 0:01:13]} 17... Nef6 {[%clk
0:01:56.5]} 18. Bd3 {[%clk 0:01:03.4]} 18... Kd8 {[%clk 0:01:47]} 19. Ng5 {[%clk
0:00:54.4]} 19... Bd5 {[%clk 0:01:42.6]} 20. c4 {[%clk 0:00:49.3]} 20... h6
{[%clk 0:01:32.9]} 21. cxd5 {[%clk 0:00:27]} 21... Nxd5+ {[%clk 0:01:32.2]} 22.
Kf2 {[%clk 0:00:27.3]} 22... hxg5 {[%clk 0:01:31.7]} 23. Bxg7 {[%clk 0:00:27.8]}
23... Bc5+ {[%clk 0:01:27]} 24. Kf3 {[%clk 0:00:24.8]} 24... Re8 {[%clk
0:01:23.2]} 25. Be4 {[%clk 0:00:21.1]} 25... Ne5+ {[%clk 0:01:15]} 26. Bxe5
{[%clk 0:00:20.1]} 26... Rxe5 {[%clk 0:01:15.9]} 27. Nc3 {[%clk 0:00:19.9]}
27... Nf6 {[%clk 0:01:09.1]} 28. Rd1+ {[%clk 0:00:19.6]} 28... Kc7 {[%clk
0:01:08.6]} 29. g3 {[%clk 0:00:16.3]} 29... Bb4 {[%clk 0:01:08.2]} 30. Rd4
{[%clk 0:00:12.1]} 30... Bxc3 {[%clk 0:01:03.6]} 31. bxc3 {[%clk 0:00:13]} 31...
c5 {[%clk 0:01:04.1]} 32. Rc4 {[%clk 0:00:11.9]} 32... b5 {[%clk 0:01:04.1]} 0-1

[Event "Early-Titled-Tuesday-Blitz-August-29-2023"]
[Site "Chess.com"]
[Date "2023.08.29"]
[Round "4"]
[White "BillCoe"]
[Black "Balla_Tamas"]
[Result "0-1"]
[WhiteElo "2127"]
[BlackElo "2443"]
[TimeControl "180+1"]
[EndTime "8:38:16 PDT"]
[Termination "Balla_Tamas won by checkmate"]

1. e4 {[%clk 0:02:59.7]} 1... c5 {[%clk 0:03:00]} 2. Nf3 {[%clk 0:02:59.3]} 2...
Nc6 {[%clk 0:03:00.2]} 3. Bb5 {[%clk 0:02:57]} 3... Nf6 {[%clk 0:03:00]} 4. e5
{[%clk 0:02:54.6]} 4... Nd5 {[%clk 0:02:59.5]} 5. c3 {[%clk 0:02:54.7]} 5... Nc7
{[%clk 0:02:58.1]} 6. Ba4 {[%clk 0:02:54.1]} 6... g6 {[%clk 0:02:55.9]} 7. O-O
{[%clk 0:02:52.5]} 7... Bg7 {[%clk 0:02:55.9]} 8. Re1 {[%clk 0:02:51.1]} 8...
O-O {[%clk 0:02:55.8]} 9. d4 {[%clk 0:02:50.2]} 9... cxd4 {[%clk 0:02:55.4]} 10.
cxd4 {[%clk 0:02:51.1]} 10... d6 {[%clk 0:02:56.1]} 11. exd6 {[%clk 0:02:45.3]}
11... Qxd6 {[%clk 0:02:54.7]} 12. Bxc6 {[%clk 0:02:43.7]} 12... bxc6 {[%clk
0:02:43.4]} 13. Nc3 {[%clk 0:02:37.8]} 13... Rd8 {[%clk 0:02:24.5]} 14. Be3
{[%clk 0:02:36.5]} 14... Nd5 {[%clk 0:02:18.4]} 15. Nxd5 {[%clk 0:02:24.3]}
15... Qxd5 {[%clk 0:02:16.7]} 16. Qa4 {[%clk 0:02:23]} 16... Bg4 {[%clk
0:02:14.9]} 17. Ne5 {[%clk 0:02:06.2]} 17... Bd7 {[%clk 0:01:45.2]} 18. Nxd7
{[%clk 0:02:04.1]} 18... Rxd7 {[%clk 0:01:43.1]} 19. Red1 {[%clk 0:01:40.4]}
19... Rad8 {[%clk 0:01:42.1]} 20. Rac1 {[%clk 0:01:39.5]} 20... c5 {[%clk
0:01:38.5]} 21. b3 {[%clk 0:01:02.1]} 21... cxd4 {[%clk 0:01:37.3]} 22. Bd2
{[%clk 0:00:52.2]} 22... d3 {[%clk 0:01:36.7]} 23. Rc4 {[%clk 0:00:48.9]} 23...
Bd4 {[%clk 0:01:32.4]} 24. Ba5 {[%clk 0:00:44.5]} 24... Bb6 {[%clk 0:01:25.8]}
25. Bc3 {[%clk 0:00:31.4]} 25... Qh5 {[%clk 0:01:17.7]} 26. b4 {[%clk
0:00:26.4]} 26... Qe2 {[%clk 0:01:10.5]} 27. Rf4 {[%clk 0:00:19.2]} 27... d2
{[%clk 0:01:05]} 28. Qb3 {[%clk 0:00:17.6]} 28... e6 {[%clk 0:01:01.3]} 29. Rf3
{[%clk 0:00:16.4]} 29... Rd3 {[%clk 0:01:00.9]} 30. Qc4 {[%clk 0:00:14.1]} 30...
Qxd1# {[%clk 0:00:59.6]} 0-1

[Event "Early-Titled-Tuesday-Blitz-August-29-2023"]
[Site "Chess.com"]
[Date "2023.08.29"]
[Round "4"]
[White "HElissalt"]
[Black "djano"]
[Result "0-1"]
[WhiteElo "2366"]
[BlackElo "2523"]
[TimeControl "180+1"]
[EndTime "8:38:18 PDT"]
[Termination "djano won by resignation"]

1. d4 {[%clk 0:02:58.5]} 1... Nf6 {[%clk 0:03:00.3]} 2. c4 {[%clk 0:02:57.6]}
2... c5 {[%clk 0:03:00.1]} 3. d5 {[%clk 0:02:55.5]} 3... b6 {[%clk 0:03:00.3]}
4. Nc3 {[%clk 0:02:33.6]} 4... g6 {[%clk 0:03:00]} 5. e4 {[%clk 0:02:17.9]} 5...
d6 {[%clk 0:03:00.3]} 6. f4 {[%clk 0:02:16.1]} 6... Bg7 {[%clk 0:02:59.8]} 7.
Nf3 {[%clk 0:02:15.8]} 7... O-O {[%clk 0:02:59.4]} 8. Bd3 {[%clk 0:01:47.3]}
8... e6 {[%clk 0:02:59.6]} 9. O-O {[%clk 0:01:36.9]} 9... Na6 {[%clk 0:02:59.8]}
10. e5 {[%clk 0:01:26.7]} 10... Ne8 {[%clk 0:02:52.7]} 11. Be4 {[%clk
0:01:00.8]} 11... Rb8 {[%clk 0:02:46.8]} 12. Qe2 {[%clk 0:00:46.4]} 12... Nac7
{[%clk 0:02:42.5]} 13. Rd1 {[%clk 0:00:43.1]} 13... exd5 {[%clk 0:02:40.1]} 14.
cxd5 {[%clk 0:00:37.1]} 14... Bg4 {[%clk 0:02:33.6]} 15. e6 {[%clk 0:00:22.3]}
15... fxe6 {[%clk 0:02:26.1]} 16. dxe6 {[%clk 0:00:21.6]} 16... Nxe6 {[%clk
0:02:27]} 17. Bd5 {[%clk 0:00:20.7]} 17... Nc7 {[%clk 0:02:27.4]} 18. h3 {[%clk
0:00:19.6]} 18... Bf5 {[%clk 0:01:49.1]} 19. g4 {[%clk 0:00:18.7]} 19... Nxd5
{[%clk 0:01:43.4]} 20. gxf5 {[%clk 0:00:18]} 20... Nexf4 {[%clk 0:01:16.3]} 21.
Bxf4 {[%clk 0:00:11.3]} 21... Nxf4 {[%clk 0:01:17.2]} 22. Qe4 {[%clk 0:00:11.3]}
22... Rxf5 {[%clk 0:01:14.5]} 23. Nd5 {[%clk 0:00:10.6]} 23... Nxd5 {[%clk
0:01:06.9]} 24. Rxd5 {[%clk 0:00:09.4]} 24... Qf6 {[%clk 0:01:05.3]} 25. Rad1
{[%clk 0:00:08]} 25... Rxf3 {[%clk 0:01:00]} 26. Rxd6 {[%clk 0:00:07.5]} 26...
Rf1+ {[%clk 0:00:54.9]} 27. Rxf1 {[%clk 0:00:05.1]} 27... Qxd6 {[%clk
0:00:54.9]} 28. Qc4+ {[%clk 0:00:05]} 28... Kh8 {[%clk 0:00:54.1]} 29. Qf7
{[%clk 0:00:04.8]} 29... Rf8 {[%clk 0:00:51.3]} 0-1

[Event "Early-Titled-Tuesday-Blitz-August-29-2023"]
[Site "Chess.com"]
[Date "2023.08.29"]
[Round "4"]
[White "aghasiyevkamal"]
[Black "attack2mateU"]
[Result "0-1"]
[WhiteElo "2498"]
[BlackElo "2738"]
[TimeControl "180+1"]
[EndTime "8:38:29 PDT"]
[Termination "attack2mateU won by resignation"]

1. d4 {[%clk 0:03:00.9]} 1... Nf6 {[%clk 0:02:53]} 2. c4 {[%clk 0:03:00.1]} 2...
g6 {[%clk 0:02:52.8]} 3. f3 {[%clk 0:02:54]} 3... Nc6 {[%clk 0:02:51.1]} 4. d5
{[%clk 0:02:50.2]} 4... Ne5 {[%clk 0:02:50.3]} 5. e4 {[%clk 0:02:50.5]} 5... d6
{[%clk 0:02:50.9]} 6. Nc3 {[%clk 0:02:48.1]} 6... Bg7 {[%clk 0:02:51.3]} 7. Be3
{[%clk 0:02:46.9]} 7... O-O {[%clk 0:02:49.4]} 8. Bd3 {[%clk 0:02:42.4]} 8... e6
{[%clk 0:02:18.2]} 9. Nge2 {[%clk 0:02:39.5]} 9... c6 {[%clk 0:02:01.3]} 10. O-O
{[%clk 0:02:24.4]} 10... exd5 {[%clk 0:01:57.5]} 11. cxd5 {[%clk 0:02:24]} 11...
cxd5 {[%clk 0:01:57.4]} 12. exd5 {[%clk 0:02:15.6]} 12... Re8 {[%clk 0:01:57.2]}
13. Bd4 {[%clk 0:02:11.5]} 13... Nxd3 {[%clk 0:01:38.4]} 14. Qxd3 {[%clk
0:02:09.4]} 14... Bf5 {[%clk 0:01:33.3]} 15. Qd2 {[%clk 0:02:09.4]} 15... a6
{[%clk 0:01:28.6]} 16. Ng3 {[%clk 0:02:08.4]} 16... Bd7 {[%clk 0:01:26.8]} 17.
Nge4 {[%clk 0:01:53.7]} 17... Bf5 {[%clk 0:01:23.7]} 18. Rae1 {[%clk 0:01:49.5]}
18... Bxe4 {[%clk 0:01:22.1]} 19. fxe4 {[%clk 0:01:48.5]} 19... Ng4 {[%clk
0:01:17.9]} 20. Bxg7 {[%clk 0:01:41.7]} 20... Kxg7 {[%clk 0:01:18.8]} 21. Qd4+
{[%clk 0:01:42.2]} 21... Ne5 {[%clk 0:01:18]} 22. a4 {[%clk 0:01:34.9]} 22...
Rc8 {[%clk 0:01:18.5]} 23. b3 {[%clk 0:01:29.9]} 23... Qc7 {[%clk 0:01:05.6]}
24. Ne2 {[%clk 0:01:29.5]} 24... Qc2 {[%clk 0:01:02.1]} 25. Qb6 {[%clk
0:01:16.6]} 25... Nd3 {[%clk 0:00:50.2]} 26. Nd4 {[%clk 0:00:54.1]} 26... Qc5
{[%clk 0:00:45.2]} 27. Qxc5 {[%clk 0:00:48.9]} 27... dxc5 {[%clk 0:00:45.5]} 28.
Rd1 {[%clk 0:00:47.2]} 28... Nb2 {[%clk 0:00:39.4]} 29. Rd2 {[%clk 0:00:40.9]}
29... cxd4 {[%clk 0:00:39.7]} 30. Rxb2 {[%clk 0:00:41.3]} 30... Rxe4 {[%clk
0:00:39.6]} 31. Rd2 {[%clk 0:00:31.5]} 31... Rd8 {[%clk 0:00:39.7]} 32. Rc1
{[%clk 0:00:31.7]} 32... Rxd5 {[%clk 0:00:39.6]} 33. Rc7 {[%clk 0:00:31.8]}
33... d3 {[%clk 0:00:39.7]} 34. Kf2 {[%clk 0:00:32.1]} 34... Rf5+ {[%clk
0:00:39.3]} 35. Kg3 {[%clk 0:00:31.7]} 35... Re3+ {[%clk 0:00:37.4]} 36. Kg4
{[%clk 0:00:32]} 36... h5+ {[%clk 0:00:37.3]} 37. Kh4 {[%clk 0:00:32.4]} 37...
Kh6 {[%clk 0:00:36.1]} 0-1

[Event "Early-Titled-Tuesday-Blitz-August-29-2023"]
[Site "Chess.com"]
[Date "2023.08.29"]
[Round "4"]
[White "lamomiajunior"]
[Black "Chessbard1972"]
[Result "1-0"]
[WhiteElo "2803"]
[BlackElo "2545"]
[TimeControl "180+1"]
[EndTime "8:38:32 PDT"]
[Termination "lamomiajunior won by resignation"]

1. d4 {[%clk 0:03:00.9]} 1... Nf6 {[%clk 0:02:59.3]} 2. Nc3 {[%clk 0:03:01.6]}
2... d5 {[%clk 0:02:58.7]} 3. Bf4 {[%clk 0:03:02.2]} 3... Bf5 {[%clk 0:02:57.3]}
4. f3 {[%clk 0:03:02.2]} 4... e6 {[%clk 0:02:52.9]} 5. g4 {[%clk 0:03:01.7]}
5... Bg6 {[%clk 0:02:52.9]} 6. Qd2 {[%clk 0:03:02.5]} 6... Bb4 {[%clk
0:02:51.9]} 7. a3 {[%clk 0:03:02.4]} 7... Bd6 {[%clk 0:02:49.5]} 8. h4 {[%clk
0:03:02.1]} 8... h6 {[%clk 0:02:49.2]} 9. Nh3 {[%clk 0:03:00.5]} 9... a6 {[%clk
0:02:27.5]} 10. e3 {[%clk 0:02:57.5]} 10... c5 {[%clk 0:02:26.1]} 11. Bxd6
{[%clk 0:02:57.1]} 11... Qxd6 {[%clk 0:02:25.5]} 12. Nf4 {[%clk 0:02:58]} 12...
Bh7 {[%clk 0:02:25.2]} 13. g5 {[%clk 0:02:57.7]} 13... Nfd7 {[%clk 0:02:20.7]}
14. g6 {[%clk 0:02:52.9]} 14... fxg6 {[%clk 0:02:10.5]} 15. O-O-O {[%clk
0:02:43.1]} 15... Nc6 {[%clk 0:02:08.4]} 16. Bh3 {[%clk 0:02:42.9]} 16... Nf8
{[%clk 0:02:05.5]} 17. dxc5 {[%clk 0:02:24.9]} 17... Qxc5 {[%clk 0:02:03.2]} 18.
Bxe6 {[%clk 0:02:17.7]} 18... g5 {[%clk 0:01:55.8]} 19. hxg5 {[%clk 0:02:17.9]}
19... hxg5 {[%clk 0:01:54.8]} 20. Nd3 {[%clk 0:01:59.3]} 20... Qd6 {[%clk
0:01:45.6]} 21. Bxd5 {[%clk 0:01:58.2]} 21... O-O-O {[%clk 0:01:42.3]} 22. e4
{[%clk 0:01:54.1]} 22... Ne6 {[%clk 0:01:27.2]} 23. Bxe6+ {[%clk 0:01:32]} 23...
Qxe6 {[%clk 0:01:26.3]} 24. Qxg5 {[%clk 0:01:28.6]} 24... Nd4 {[%clk 0:01:12.1]}
25. Qe3 {[%clk 0:01:26.4]} 25... Kb8 {[%clk 0:01:10]} 26. Nf4 {[%clk 0:01:24.7]}
26... Qe5 {[%clk 0:01:09]} 27. Nfd5 {[%clk 0:01:18.3]} 27... Nc6 {[%clk
0:01:04.3]} 28. f4 {[%clk 0:01:15.2]} 28... Qe6 {[%clk 0:00:59.6]} 29. Rhe1
{[%clk 0:01:00.8]} 29... Rhe8 {[%clk 0:00:58.3]} 30. Qg3 {[%clk 0:00:58.7]}
30... Qf7 {[%clk 0:00:55.6]} 31. f5+ {[%clk 0:00:49.9]} 31... Ne5 {[%clk
0:00:55]} 32. Nf4 {[%clk 0:00:46.9]} 32... Rxd1+ {[%clk 0:00:52.3]} 33. Rxd1
{[%clk 0:00:47.8]} 33... Ka8 {[%clk 0:00:50.4]} 34. Ne6 {[%clk 0:00:45.5]} 34...
Rxe6 {[%clk 0:00:33.6]} 35. fxe6 {[%clk 0:00:46]} 35... Qxe6 {[%clk 0:00:34.1]}
36. Qxg7 {[%clk 0:00:44.1]} 36... Bg6 {[%clk 0:00:33.8]} 37. Qf8+ {[%clk
0:00:42.4]} 37... Ka7 {[%clk 0:00:33.5]} 38. Qc5+ {[%clk 0:00:43]} 38... b6
{[%clk 0:00:29.9]} 39. Qd6 {[%clk 0:00:42.8]} 39... Qe8 {[%clk 0:00:28.3]} 40.
Qc7+ {[%clk 0:00:42.4]} 40... Ka8 {[%clk 0:00:28.9]} 41. Rd8+ {[%clk 0:00:42.1]}
1-0

[Event "Early-Titled-Tuesday-Blitz-August-29-2023"]
[Site "Chess.com"]
[Date "2023.08.29"]
[Round "4"]
[White "KVAIDAN"]
[Black "Alphafischer2019"]
[Result "0-1"]
[WhiteElo "2378"]
[BlackElo "2528"]
[TimeControl "180+1"]
[EndTime "8:38:34 PDT"]
[Termination "Alphafischer2019 won by resignation"]

1. f4 {[%clk 0:03:00.9]} 1... d5 {[%clk 0:02:59.2]} 2. Nf3 {[%clk 0:02:58.8]}
2... Nf6 {[%clk 0:02:59.7]} 3. e3 {[%clk 0:02:58.8]} 3... Bf5 {[%clk 0:02:57.2]}
4. Be2 {[%clk 0:02:58.1]} 4... h6 {[%clk 0:02:56.5]} 5. O-O {[%clk 0:02:57.4]}
5... e6 {[%clk 0:02:57]} 6. b3 {[%clk 0:02:57.6]} 6... c5 {[%clk 0:02:55.7]} 7.
Bb2 {[%clk 0:02:57.5]} 7... Nc6 {[%clk 0:02:54.1]} 8. Bb5 {[%clk 0:02:57.7]}
8... Qb6 {[%clk 0:02:44.1]} 9. a4 {[%clk 0:02:53]} 9... Nd7 {[%clk 0:02:10.3]}
10. d3 {[%clk 0:02:48.2]} 10... a6 {[%clk 0:02:05]} 11. a5 {[%clk 0:02:44.8]}
11... Qc7 {[%clk 0:01:40.9]} 12. Ba4 {[%clk 0:02:42]} 12... O-O-O {[%clk
0:01:31]} 13. Nbd2 {[%clk 0:02:33.8]} 13... Bh7 {[%clk 0:01:19.7]} 14. Qe2
{[%clk 0:02:27.6]} 14... Nf6 {[%clk 0:01:03]} 15. Bxc6 {[%clk 0:02:24.5]} 15...
Qxc6 {[%clk 0:01:01.5]} 16. Ne5 {[%clk 0:02:24.8]} 16... Qc7 {[%clk 0:01:01.1]}
17. d4 {[%clk 0:02:24.2]} 17... Kb8 {[%clk 0:00:29.1]} 18. c4 {[%clk 0:02:22.9]}
18... cxd4 {[%clk 0:00:22.4]} 19. Bxd4 {[%clk 0:02:21.7]} 19... Bc5 {[%clk
0:00:16.3]} 20. b4 {[%clk 0:02:18.4]} 20... Bxd4 {[%clk 0:00:16.1]} 21. exd4
{[%clk 0:02:18.5]} 21... dxc4 {[%clk 0:00:16.2]} 22. Ndxc4 {[%clk 0:02:18.9]}
22... Nd5 {[%clk 0:00:15.9]} 23. Nb6 {[%clk 0:02:13]} 23... Nxb6 {[%clk
0:00:15]} 24. axb6 {[%clk 0:02:13.4]} 24... Qxb6 {[%clk 0:00:14.6]} 25. Nxf7
{[%clk 0:02:13.9]} 25... Qxd4+ {[%clk 0:00:15.3]} 26. Kh1 {[%clk 0:02:13.2]}
26... Bd3 {[%clk 0:00:16]} 27. Qe5+ {[%clk 0:02:05.6]} 27... Qxe5 {[%clk
0:00:16]} 28. fxe5 {[%clk 0:02:05.4]} 28... Bxf1 {[%clk 0:00:16.4]} 29. Nxh8
{[%clk 0:02:04.4]} 29... Bxg2+ {[%clk 0:00:15.8]} 30. Kxg2 {[%clk 0:02:04.5]}
30... Rxh8 {[%clk 0:00:16.7]} 31. Kf3 {[%clk 0:02:05]} 31... Rc8 {[%clk
0:00:16.5]} 32. Rg1 {[%clk 0:02:03.7]} 32... g5 {[%clk 0:00:15.8]} 33. h4 {[%clk
0:02:02.4]} 33... Rc3+ {[%clk 0:00:15.7]} 34. Ke2 {[%clk 0:01:57.8]} 34... gxh4
{[%clk 0:00:13.8]} 35. Rg6 {[%clk 0:01:57.8]} 35... Rc6 {[%clk 0:00:06.9]} 36.
Rxh6 {[%clk 0:01:57.4]} 36... Ka7 {[%clk 0:00:07.3]} 37. Kd3 {[%clk 0:01:57.2]}
37... Kb6 {[%clk 0:00:06.9]} 38. Rxh4 {[%clk 0:01:56.2]} 38... Kb5 {[%clk
0:00:07.6]} 39. Rd4 {[%clk 0:01:54.6]} 39... b6 {[%clk 0:00:05.8]} 40. Rf4
{[%clk 0:01:47.9]} 40... a5 {[%clk 0:00:05.7]} 41. bxa5 {[%clk 0:01:47.2]} 41...
bxa5 {[%clk 0:00:06.6]} 42. Kd2 {[%clk 0:01:47.3]} 42... a4 {[%clk 0:00:06.8]}
43. Kd3 {[%clk 0:01:46.2]} 43... a3 {[%clk 0:00:06.8]} 44. Rf8 {[%clk
0:01:45.1]} 44... a2 {[%clk 0:00:06.6]} 45. Rf1 {[%clk 0:01:43.4]} 45... Kb4
{[%clk 0:00:06.5]} 46. Rf4+ {[%clk 0:01:38]} 46... Kb3 {[%clk 0:00:06.5]} 47.
Rf8 {[%clk 0:01:38.1]} 47... a1=Q {[%clk 0:00:06]} 48. Rb8+ {[%clk 0:01:38]}
48... Ka2 {[%clk 0:00:06.5]} 49. Ra8+ {[%clk 0:01:38.1]} 49... Kb1 {[%clk
0:00:07]} 50. Rb8+ {[%clk 0:01:36.9]} 50... Qb2 {[%clk 0:00:07.4]} 51. Rxb2+
{[%clk 0:01:36.2]} 51... Kxb2 {[%clk 0:00:08.3]} 52. Kd4 {[%clk 0:01:36.5]}
52... Kb3 {[%clk 0:00:08.9]} 53. Ke4 {[%clk 0:01:36.6]} 53... Kc4 {[%clk
0:00:09.3]} 54. Kf4 {[%clk 0:01:37]} 54... Kd4 {[%clk 0:00:10]} 0-1

[Event "Early-Titled-Tuesday-Blitz-August-29-2023"]
[Site "Chess.com"]
[Date "2023.08.29"]
[Round "4"]
[White "Marcin"]
[Black "GMG"]
[Result "0-1"]
[WhiteElo "2482"]
[BlackElo "2720"]
[TimeControl "180+1"]
[EndTime "8:38:44 PDT"]
[Termination "GMG won by resignation"]

1. e4 {[%clk 0:02:58.1]} 1... e5 {[%clk 0:02:57.7]} 2. Nf3 {[%clk 0:02:57]} 2...
Nc6 {[%clk 0:02:58.3]} 3. Bb5 {[%clk 0:02:57.2]} 3... Nf6 {[%clk 0:02:58.2]} 4.
d3 {[%clk 0:02:54.6]} 4... d6 {[%clk 0:02:55.1]} 5. O-O {[%clk 0:02:50.6]} 5...
a6 {[%clk 0:02:54.9]} 6. Ba4 {[%clk 0:02:51]} 6... b5 {[%clk 0:02:53.4]} 7. Bb3
{[%clk 0:02:51.2]} 7... Na5 {[%clk 0:02:54]} 8. Bg5 {[%clk 0:02:44.9]} 8... Nxb3
{[%clk 0:02:52.4]} 9. axb3 {[%clk 0:02:45]} 9... Be7 {[%clk 0:02:46.4]} 10. Nc3
{[%clk 0:02:43.6]} 10... Bb7 {[%clk 0:02:42.2]} 11. b4 {[%clk 0:02:42.2]} 11...
O-O {[%clk 0:02:39.5]} 12. Bxf6 {[%clk 0:02:33.8]} 12... Bxf6 {[%clk 0:02:39.5]}
13. Nd2 {[%clk 0:02:34.6]} 13... g6 {[%clk 0:02:34.2]} 14. Nb3 {[%clk
0:02:33.3]} 14... Qd7 {[%clk 0:02:32.7]} 15. Nd5 {[%clk 0:02:32.9]} 15... Bg7
{[%clk 0:02:29.7]} 16. Na5 {[%clk 0:02:33.1]} 16... Bc8 {[%clk 0:02:29.3]} 17.
c4 {[%clk 0:02:33.4]} 17... Rb8 {[%clk 0:02:28.5]} 18. Qd2 {[%clk 0:02:32.5]}
18... c6 {[%clk 0:02:28]} 19. Ne3 {[%clk 0:02:32.4]} 19... f5 {[%clk 0:02:26.3]}
20. exf5 {[%clk 0:02:30.1]} 20... gxf5 {[%clk 0:02:27.2]} 21. cxb5 {[%clk
0:02:06.6]} 21... axb5 {[%clk 0:02:21.5]} 22. Rac1 {[%clk 0:02:06]} 22... Rb6
{[%clk 0:02:19.8]} 23. f3 {[%clk 0:02:01.1]} 23... f4 {[%clk 0:02:13.3]} 24. Nd1
{[%clk 0:02:00.4]} 24... Qe8 {[%clk 0:02:09.8]} 25. Nc3 {[%clk 0:01:57.5]} 25...
Qg6 {[%clk 0:01:58.4]} 26. Ne4 {[%clk 0:01:56.5]} 26... d5 {[%clk 0:01:55.8]}
27. Nf2 {[%clk 0:01:53.6]} 27... Kh8 {[%clk 0:01:47]} 28. Rfe1 {[%clk
0:01:51.5]} 28... Rg8 {[%clk 0:01:46.3]} 29. Kh1 {[%clk 0:01:48.8]} 29... Bf6
{[%clk 0:01:34]} 30. Ng4 {[%clk 0:01:35.9]} 30... Bxg4 {[%clk 0:01:28.1]} 31.
fxg4 {[%clk 0:01:36.8]} 31... Qxg4 {[%clk 0:01:27.2]} 32. Rxc6 {[%clk
0:01:37.1]} 32... Rxc6 {[%clk 0:01:23.7]} 33. Nxc6 {[%clk 0:01:38]} 33... f3
{[%clk 0:01:23.2]} 34. Rg1 {[%clk 0:01:38.4]} 34... e4 {[%clk 0:01:20.1]} 35.
dxe4 {[%clk 0:01:36.4]} 35... dxe4 {[%clk 0:01:14.9]} 36. Qf2 {[%clk 0:01:24.9]}
36... Qe6 {[%clk 0:01:04.2]} 37. Nd4 {[%clk 0:01:19.2]} 37... Qb6 {[%clk
0:00:59.1]} 38. gxf3 {[%clk 0:01:04.9]} 38... Rxg1+ {[%clk 0:00:56.6]} 39. Qxg1
{[%clk 0:01:05.8]} 39... Qxd4 {[%clk 0:00:55.5]} 40. Qg4 {[%clk 0:00:51.9]}
40... Qd1+ {[%clk 0:00:53.3]} 41. Kg2 {[%clk 0:00:52.5]} 41... Qxf3+ {[%clk
0:00:53.9]} 42. Qxf3 {[%clk 0:00:53.2]} 42... exf3+ {[%clk 0:00:54.8]} 43. Kxf3
{[%clk 0:00:53.9]} 43... Bxb2 {[%clk 0:00:55.4]} 44. Ke4 {[%clk 0:00:54.6]}
44... Kg7 {[%clk 0:00:49.4]} 45. Kd5 {[%clk 0:00:54.6]} 45... Kg6 {[%clk
0:00:49.9]} 46. Kc5 {[%clk 0:00:55.2]} 46... Kf5 {[%clk 0:00:50.3]} 47. Kxb5
{[%clk 0:00:55.9]} 47... Kg4 {[%clk 0:00:50.4]} 48. Kc4 {[%clk 0:00:56.7]} 48...
Kh3 {[%clk 0:00:49]} 49. Kd5 {[%clk 0:00:57.1]} 49... Bc1 {[%clk 0:00:41.9]} 50.
Ke4 {[%clk 0:00:55.9]} 50... Kxh2 {[%clk 0:00:40.2]} 51. b5 {[%clk 0:00:53]}
51... Kg3 {[%clk 0:00:38.6]} 52. Kf5 {[%clk 0:00:49.2]} 52... h5 {[%clk
0:00:38.4]} 0-1